fUST/lending_fUST_20240128
["ID","MTS","AMOUNT","RATE_DAILY","PERIOD"]
[312860132,1706373039618,-874.25165807,0.0002728,2]
[312860135,1706373039630,-23574.82,0.00027397,3]
[312860137,1706373039641,-200.93387921,0.000279,2]
[312860139,1706373039654,-200.93387921,0.000279,2]
[312860142,1706373039666,-155.20393255,0.00028,2]
[312860144,1706373039677,-159.42971699,0.0002828,2]
[312860146,1706373039688,-168.76336281,0.00028341,4]
[312860148,1706373039698,-632.7125829,0.00028644,2]
[312860150,1706373039707,-1933.42796518,0.00029,2]
[312860164,1706373039716,-1000.0,0.00029,2]
[312860167,1706373039844,-283.16066453,0.00029,2]
[312860169,1706373039853,-155.01860223,0.00029,2]
[312860171,1706373039862,-164.52095892,0.00029312,2]
[312860173,1706373039871,-1252.45779158,0.00029314,2]
[312860175,1706373039880,-155.06427461,0.00029314,2]
[312860177,1706373039889,-199.4415769,0.00029315,2]
[312860179,1706373039898,-153.0,0.00029315,2]
[312860181,1706373039907,-153.0,0.00029315,2]
[312860183,1706373039916,-324.49096737,0.000299,2]
[312860185,1706373039926,-5000.0,0.0002994,5]
[312860187,1706373039935,-76207.62328182,0.0002994,4]
[312860189,1706373039944,-500.0,0.00029995,2]
[312860191,1706373039954,-500.0,0.00029995,2]
[312860192,1706373039963,-500.0,0.00029995,2]
[312860194,1706373039972,-500.0,0.00029995,2]
[312860196,1706373039981,-500.0,0.00029995,2]
[312860198,1706373039990,-500.0,0.00029995,2]
[312860201,1706373040000,-500.0,0.00029995,2]
[312860202,1706373040009,-500.0,0.00029995,2]
[312860205,1706373040018,-500.0,0.00029995,2]
[312860206,1706373040027,-500.0,0.00029995,2]
[312860208,1706373040036,-600.0,0.00029995,2]
[312860211,1706373040045,-638.51336109,0.00029995,2]
[312860212,1706373040055,-500.0,0.00029995,2]
[312860215,1706373040065,-344.33734165,0.00029995,2]
[312860217,1706373040074,-218.12852776,0.00029995,2]
[312860219,1706373040082,-500.0,0.00029995,2]
[312860220,1706373040093,-500.0,0.00029995,2]
[312860223,1706373040103,-170.56154962,0.00029995,2]
[312860225,1706373040112,-500.0,0.00029995,2]
[312860226,1706373040122,-500.0,0.00029995,2]
[312860229,1706373040131,-500.0,0.00029995,2]
[312860231,1706373040141,-500.0,0.00029995,2]
[312860233,1706373040150,-500.0,0.00029995,2]
[312860235,1706373040159,-500.0,0.00029995,2]
[312860237,1706373040167,-500.0,0.00029995,2]
[312860238,1706373040176,-500.0,0.00029995,2]
[312860240,1706373040185,-500.0,0.00029995,2]
[312860242,1706373040195,-500.0,0.00029995,2]
[312860245,1706373040204,-500.0,0.00029995,2]
[312860247,1706373040213,-500.0,0.00029995,2]
[312860249,1706373040235,-500.0,0.00029995,2]
[312860250,1706373040244,-500.0,0.00029995,2]
[312860252,1706373040252,-500.0,0.00029995,2]
[312860254,1706373040261,-500.0,0.00029995,2]
[312860256,1706373040270,-500.0,0.00029995,2]
[312860258,1706373040279,-500.0,0.00029995,2]
[312860260,1706373040288,-397.4961264,0.00029995,2]
[312860262,1706373040297,-500.0,0.00029995,2]
[312860264,1706373040306,-500.0,0.00029995,2]
[312860266,1706373040318,-500.0,0.00029995,2]
[312860268,1706373040327,-500.0,0.00029995,2]
[312860270,1706373040336,-500.0,0.00029995,2]
[312860272,1706373040345,-500.0,0.00029995,2]
[312860275,1706373040355,-500.0,0.00029995,2]
[312860277,1706373040363,-500.0,0.00029995,2]
[312860278,1706373040373,-162.74181451,0.00029995,2]
[312860281,1706373040383,-500.0,0.00029995,2]
[312860282,1706373040393,-500.0,0.00029995,2]
[312860284,1706373040405,-500.0,0.00029995,2]
[312860287,1706373040416,-500.0,0.00029995,2]
[312860289,1706373040425,-500.0,0.00029995,2]
[312860290,1706373040435,-500.0,0.00029995,2]
[312860292,1706373040446,-448.38,0.00029995,2]
[312860294,1706373040455,-500.0,0.00029995,2]
[312860296,1706373040465,-500.0,0.00029995,2]
[312860298,1706373040474,-500.0,0.00029995,2]
[312860301,1706373040483,-500.0,0.00029995,2]
[312860303,1706373040493,-500.0,0.00029995,2]
[312860304,1706373040502,-500.0,0.00029995,2]
[312860307,1706373040513,-2512.042803,0.00029998,2]
[312860308,1706373040523,-2348.08731336,0.00029999,2]
[312860311,1706373040533,-5726.50858255,0.0003,2]
[312860312,1706373040542,-244.44828906,0.0003,4]
[312860314,1706373040552,-146331.23431988,0.0003,4]
[312860316,1706373040562,-689.09430435,0.0003,4]
[312860318,1706373040571,-155.01860223,0.0003,4]
[312860321,1706373040581,-195.57103754,0.0003,2]
[312860322,1706373040591,-155.01860223,0.0003,2]
[312860324,1706373040602,-200.82122795,0.0003,4]
[312860327,1706373040612,-157.99274934,0.0003,4]
[312860328,1706373040621,-1200.0,0.0003,4]
[312860330,1706373040630,-688.907296,0.0003,4]
[312860333,1706373040640,-254.87264804,0.0003,2]
[312860334,1706373040649,-155.01860223,0.0003,4]
[312860337,1706373040659,-373.0,0.0003,2]
[312860339,1706373040668,-620.63562915,0.00030076,2]
[312860341,1706373040677,-153.0,0.00030137,2]
[312860343,1706373040686,-153.0,0.00030137,2]
[312860345,1706373040695,-153.0,0.00030137,2]
[312860347,1706373040704,-153.0,0.00030137,2]
[312860349,1706373040713,-153.0,0.00030137,2]
[312860352,1706373040722,-153.0,0.00030137,2]
[312860354,1706373040732,-153.0,0.00030137,2]
[312860355,1706373040741,-164.486678,0.00030137,2]
[312860358,1706373040751,-154.5089909,0.00030137,2]
[312860359,1706373040762,-153.0,0.00030137,2]
[312860362,1706373040772,-312.5134984,0.00030137,2]
[312860364,1706373040782,-212.0814075,0.00030137,2]
[312860366,1706373040791,-153.0,0.00030137,2]
[312860368,1706373040800,-346.061529,0.00030137,2]
[312860370,1706373040809,-158.508265,0.00030137,2]
[312860372,1706373040818,-161.43393847,0.00031,4]
[312860374,1706373040827,-1175.45652108,0.00031,7]
[312860375,1706373040836,-346.061529,0.00031115,2]
[312860378,1706373040845,-158.508265,0.00031133,2]
[312860380,1706373040855,-620.03178146,0.0003158,2]
[312860381,1706373040864,-155.01860223,0.00032,4]
[312860383,1706373040873,-155.01860223,0.00032,4]
[312860385,1706373040883,-281.05555577,0.00032,4]
[312860387,1706373040892,-556.2457431,0.00032,2]
[312860389,1706373040901,-346.061529,0.00032094,2]
[312860391,1706373040910,-158.508265,0.0003213,2]
[312860393,1706373040919,-228.50754628,0.00033,2]
[312860395,1706373040928,-22355.32655684,0.00033,5]
[312860398,1706373040938,-373.0,0.00033,2]
[312860400,1706373040947,-346.061529,0.00033072,2]
[312860402,1706373040956,-158.508265,0.00033126,2]
[312860404,1706373040966,-620.00158907,0.00033159,2]
[312860406,1706373040975,-7196.06854955,0.0003325,5]
[312860407,1706373040984,-82714.7913079,0.00033296,2]
[312860410,1706373040993,-151.01661183,0.00033372,2]
[312860412,1706373041002,-250.51843703,0.00033372,2]
[312860414,1706373041011,-302.03322365,0.00033933,4]
[312860416,1706373041021,-155.0,0.00033999,2]
[312860417,1706373041030,-346.061529,0.00034051,2]
[312860419,1706373041039,-158.508265,0.00034122,2]
[312860421,1706373041049,-604.06644731,0.00034503,7]
[312860423,1706373041058,-620.00007945,0.00034817,2]
[312860425,1706373041067,-173.8,0.00034897,2]
[312860427,1706373041076,-173.8,0.00034897,2]
[312860429,1706373041085,-173.8,0.00034897,2]
[312860431,1706373041096,-173.8,0.00034897,2]
[312860434,1706373041106,-173.8,0.00034897,2]
[312860435,1706373041116,-173.8,0.00034897,2]
[312860437,1706373041126,-173.8,0.00034897,2]
[312860440,1706373041135,-173.8,0.00034897,2]
[312860441,1706373041144,-173.8,0.00034897,2]
[312860443,1706373041155,-173.8,0.00034897,2]
[312860445,1706373041167,-254390.46648685,0.00034898,2]
[312860448,1706373041177,-311.78878247,0.00034899,10]
[312860450,1706373041187,-373.73938568,0.00034899,10]
[312860451,1706373041196,-500.0,0.00034899,10]
[312860453,1706373041206,-500.0,0.00034899,10]
[312860457,1706373041229,-500.0,0.00034899,10]
[312860459,1706373041239,-500.0,0.00034899,10]
[312860460,1706373041248,-500.0,0.00034899,10]
[312860463,1706373041257,-500.0,0.00034899,10]
[312860464,1706373041266,-500.0,0.00034899,10]
[312860466,1706373041275,-447.72143804,0.00034899,10]
[312860469,1706373041284,-190.08601288,0.00034899,10]
[312860471,1706373041293,-500.0,0.00034899,10]
[312860472,1706373041302,-321.69028241,0.00034899,10]
[312860475,1706373041312,-500.0,0.00034899,10]
[312860476,1706373041324,-500.0,0.00034899,10]
[312860478,1706373041333,-500.0,0.00034899,10]
[312860481,1706373041342,-500.0,0.00034899,10]
[312860483,1706373041351,-500.0,0.00034899,10]
[312860484,1706373041363,-500.0,0.00034899,10]
[312860486,1706373041372,-500.0,0.00034899,10]
[312860488,1706373041381,-500.0,0.00034899,10]
[312860490,1706373041390,-500.0,0.00034899,10]
[312860492,1706373041399,-500.0,0.00034899,10]
[312860495,1706373041408,-500.0,0.00034899,10]
[312860497,1706373041418,-500.0,0.00034899,10]
[312860498,1706373041426,-500.0,0.00034899,10]
[312860501,1706373041436,-500.0,0.00034899,10]
[312860503,1706373041445,-500.0,0.00034899,10]
[312860504,1706373041454,-500.0,0.00034899,10]
[312860507,1706373041463,-182.71939461,0.00034899,10]
[312860509,1706373041472,-500.0,0.00034899,10]
[312860511,1706373041481,-276.60188357,0.00034899,10]
[312860513,1706373041491,-500.0,0.00034899,10]
[312860514,1706373041500,-500.0,0.00034899,10]
[312860517,1706373041509,-500.0,0.00034899,10]
[312860519,1706373041518,-500.0,0.00034899,10]
[312860520,1706373041527,-500.0,0.00034899,10]
[312860523,1706373041537,-500.0,0.00034899,10]
[312860525,1706373041546,-500.0,0.00034899,10]
[312860527,1706373041555,-500.0,0.00034899,10]
[312860529,1706373041564,-500.0,0.00034899,10]
[312860531,1706373041573,-500.0,0.00034899,10]
[312860533,1706373041583,-500.0,0.00034899,10]
[312860535,1706373041592,-1275.47963777,0.0003499,2]
[312860537,1706373041600,-329.19745495,0.00034997,4]
[312860539,1706373041609,-2876.57311927,0.00034999,4]
[312860541,1706373041618,-62656.55665343,0.00034999,4]
[312860543,1706373041627,-18498.5,0.00034999,4]
[312860545,1706373041636,-21810.39036317,0.00035,2]
[312860547,1706373041645,-2381.55591671,0.00035,2]
[312860549,1706373041654,-2496.0,0.00035,2]
[312860551,1706373041663,-20099.30484032,0.00035,2]
[312860553,1706373041672,-64779.66661041,0.00035,15]
[312860555,1706373041681,-155.01860223,0.00035,4]
[312860557,1706373041690,-2088.95008583,0.00035,4]
[312860559,1706373041700,-255.10600488,0.00035,2]
[312860561,1706373041709,-2775.15101878,0.00035,4]
[312860563,1706373041718,-408.1017874,0.00035,4]
[312860565,1706373041727,-4292.55674097,0.00035,4]
[312860574,1706373041736,-1027.50463707,0.00035,2]
[312860577,1706373041818,-649.86107879,0.00035,4]
[312860579,1706373041827,-1289.41713019,0.00035,4]
[312860581,1706373041836,-155.64739044,0.00035,4]
[312860583,1706373041847,-477.27943896,0.00035,4]
[312860584,1706373041856,-200.0,0.00035,4]
[312860585,1706373041865,-346.061529,0.00035029,2]
[312860586,1706373041874,-158.508265,0.00035118,2]
[312860587,1706373041883,-6397.81191164,0.00035185,2]
[312860588,1706373041892,-151.0,0.00035293,4]
[312860589,1706373041901,-155.0,0.00035369,2]
[312860590,1706373041910,-1208.13289462,0.00035376,30]
[312860591,1706373041920,-2504.0,0.000355,2]
[312860592,1706373041930,-502.26765655,0.0003557,2]
[312860593,1706373041939,-908.83857173,0.0003557,2]
[312860594,1706373041948,-236.29802865,0.0003557,2]
[312860595,1706373041957,-429.42622514,0.0003557,2]
[312860596,1706373041966,-928.03778656,0.0003557,2]
[312860597,1706373041975,-468.73276255,0.0003557,2]
[312860598,1706373041985,-311.82030681,0.0003557,2]
[312860599,1706373041994,-509.78689024,0.0003557,2]
[312860600,1706373042003,-1453.42859,0.00035616,120]
[312860601,1706373042012,-151.0,0.00035688,4]
[312860602,1706373042021,-14003.07550643,0.000357,2]
[312860603,1706373042030,-194.68732422,0.00035765,4]
[312860604,1706373042039,-309.80274109,0.00035775,4]
[312860605,1706373042049,-259.07239837,0.00035776,4]
[312860606,1706373042058,-10053.76052391,0.00035777,4]
[312860607,1706373042066,-647.266018,0.0003578,3]
[312860608,1706373042075,-500.0,0.000358,3]
[312860609,1706373042084,-500.0,0.0003582,3]
[312860610,1706373042093,-500.0,0.0003584,3]
[312860611,1706373042102,-23162.05000154,0.00035851,7]
[312860616,1706373042222,-10202.84952288,0.00035851,7]
[312860631,1706373042437,-16635.10047558,0.00035851,7]
[312860633,1706373042446,-151.0,0.00035851,2]
[312860635,1706373042455,-151.0,0.00035851,2]
[312860637,1706373042465,-151.0,0.00035851,2]
[312860639,1706373042475,-179.978939,0.00035851,2]
[312860641,1706373042484,-179.978939,0.00035851,2]
[312860643,1706373042493,-151.0,0.00035851,2]
[312860645,1706373042502,-213.833453,0.00035851,2]
[312860646,1706373042511,-213.833453,0.00035851,2]
[312860648,1706373042520,-151.0,0.00035851,2]
[312860650,1706373042530,-151.0,0.00035851,2]
[312860651,1706373042539,-545.413487,0.00035851,2]
[312860653,1706373042548,-545.413487,0.00035851,2]
[312860655,1706373042557,-8761.734273,0.00035851,2]
[312860657,1706373042566,-8761.734273,0.00035851,2]
[312860659,1706373042575,-160.51076071,0.00035851,2]
[312860660,1706373042587,-705.39713821,0.00035851,2]
[312860662,1706373042597,-734.74690286,0.00035851,2]
[312860665,1706373042608,-1123.29188122,0.00035851,2]
[312860666,1706373042617,-2723.946683,0.00035851,2]
[312860667,1706373042626,-500.0,0.0003586,3]
[312860668,1706373042635,-500.0,0.0003588,3]
[312860669,1706373042644,-380.82013508,0.00035896,4]
[312860671,1706373042654,-267.89728794,0.00035897,4]
[312860673,1706373042663,-481.05017491,0.00035898,4]
[312860675,1706373042672,-216.12210399,0.00035899,4]
[312860677,1706373042681,-714.830675,0.000359,7]
[312860679,1706373042690,-500.0,0.000359,3]
[312860681,1706373042699,-245.548314,0.000359,9]
[312860683,1706373042708,-500.0,0.0003592,3]
[312860684,1706373042717,-500.0,0.0003594,3]
[312860685,1706373042726,-500.0,0.0003596,3]
[312860687,1706373042735,-500.0,0.0003598,3]
[312860689,1706373042744,-18821.40996499,0.00036,7]
[312860690,1706373042756,-48016.10793565,0.00036,7]
[312860725,1706373043659,-153.0,0.00029315,2]
[312860727,1706373043669,-4389.5,0.00036,7]
[312860729,1706373043717,-2405.01468507,0.00036,7]
[312860730,1706373043731,-410.2764319,0.00036,7]
[312860731,1706373043744,-3825.03898195,0.00036,7]
[312860732,1706373043756,-1027.09871679,0.00036,7]
[312860801,1706373500093,155.01860223,0.00021917,4]
[312860802,1706373522098,155.01860223,0.00020132,4]
[312860803,1706373542101,155.01860223,0.00020125,4]
[312860804,1706373560607,155.01860223,0.00020125,4]
[312860822,1706373758968,1000.0,0.00031,31]
[312860825,1706374138199,155.01860223,0.00016799,3]
[312860826,1706374179546,-160.0,0.00015117,2]
[312860865,1706374231752,-220.134736,0.00015035,2]
[312860867,1706374231762,-1294.67927842,0.00015112,2]
[312860868,1706374231773,-500.0,0.00015113,2]
[312860870,1706374231782,-562.04995501,0.00015113,2]
[312860872,1706374231791,-36993.50130964,0.00015113,2]
[312860874,1706374231801,-155.01860223,0.00015114,2]
[312860875,1706374231810,-7966.81883748,0.00015114,2]
[312860877,1706374231821,-1267.85460751,0.00015115,2]
[312860879,1706374231830,-155.01860223,0.00015115,2]
[312860884,1706374231850,-608.60582345,0.00015116,2]
[312860887,1706374231861,-1224.57558054,0.00015116,2]
[312860962,1706374237849,-1697.2441966,0.00015111,2]
[312860963,1706374237859,-2075.77672297,0.00015111,2]
[312860964,1706374237868,-29.93324917,0.00015116,2]
[312860965,1706374237878,-528.5172537,0.00015117,2]
[312860966,1706374237887,-997.69092193,0.00015118,2]
[312860967,1706374237896,-272.79145972,0.000165,2]
[312860968,1706374237905,-400.61546052,0.00016799,2]
[312860969,1706374237915,-820.89818926,0.00016804,2]
[312860970,1706374237926,-1284.41512654,0.00016804,2]
[312860971,1706374237935,-24900.0,0.00016806,2]
[312860972,1706374237944,-1056.05635596,0.00017806,2]
[312860973,1706374237953,-155.07502483,0.00018928,2]
[312860974,1706374237962,-194.07706277,0.00018928,2]
[312860975,1706374237971,-155.40093284,0.00018928,2]
[312860976,1706374237981,-209.61775108,0.00018928,2]
[312860978,1706374237990,-345.05626457,0.00018928,2]
[312860980,1706374238000,-20606.61019362,0.0001893,2]
[312860982,1706374238009,-263.72063021,0.00018931,2]
[312860984,1706374238018,-155.14456294,0.00018931,2]
[312860985,1706374238027,-157.64914444,0.00018931,2]
[312860988,1706374238036,-528.13445908,0.00018931,2]
[312860990,1706374238045,-1583.7528565,0.00019,2]
[312860991,1706374238054,-166.188159,0.00019178,2]
[312860993,1706374238063,-166.691075,0.00019537,2]
[312860995,1706374238072,-155.01860223,0.0002,2]
[312860998,1706374238083,-200.0,0.0002,2]
[312861000,1706374238092,-679.3029243,0.0002,2]
[312861002,1706374238101,-168.99927393,0.0002,2]
[312861004,1706374238110,-1199.09633829,0.0002,2]
[312861006,1706374238119,-155.01860223,0.0002,2]
[312861008,1706374238129,-156.28562946,0.0002,2]
[312861010,1706374238138,-155.01860223,0.0002,2]
[312861012,1706374238147,-155.01860223,0.0002,2]
[312861014,1706374238156,-244.16390159,0.0002,2]
[312861016,1706374238166,-155.34661163,0.00020125,2]
[312861018,1706374238175,-155.07399689,0.00020125,2]
[312861020,1706374238185,-1827.7377922,0.00021,2]
[312861022,1706374238194,-155.17713693,0.00021028,2]
[312861024,1706374238203,-555.44587219,0.00021028,2]
[312861025,1706374238212,-166.05500787,0.00021028,2]
[312861027,1706374238221,-155.17369071,0.00021029,2]
[312861029,1706374238231,-155.07019684,0.0002103,2]
[312861032,1706374238241,-1994.28554433,0.00021038,2]
[312861033,1706374238250,-194.69458043,0.000219,2]
[312861036,1706374238259,-166.666666,0.00021918,2]
[312861037,1706374238268,-327.61566675,0.00022,2]
[312861040,1706374238278,-2036.12411825,0.00022,2]
[312861042,1706374238288,-3971.98419525,0.00022,2]
[312861044,1706374238297,-195.06700815,0.00022,2]
[312861045,1706374238307,-426.38170713,0.00022,2]
[312861048,1706374238316,-164.09330822,0.00022,2]
[312861049,1706374238325,-155.01860223,0.00022089,2]
[312861051,1706374238334,-151.53333552,0.00022156,2]
[312861054,1706374238344,-245.57627736,0.00022279,2]
[312861056,1706374238354,-164.52095892,0.00022369,2]
[312861057,1706374238363,-500.0,0.0002237,2]
[312861060,1706374238372,-500.0,0.0002237,2]
[312861061,1706374238381,-500.0,0.0002237,2]
[312861063,1706374238390,-500.0,0.0002237,2]
[312861065,1706374238399,-500.0,0.0002237,2]
[312861067,1706374238408,-500.0,0.0002237,2]
[312861069,1706374238417,-619.87643609,0.0002237,2]
[312861071,1706374238426,-2348.08731336,0.00022377,2]
[312861073,1706374238436,-3884.00446648,0.00022393,2]
[312861075,1706374238445,-903.29302173,0.00022393,2]
[312861077,1706374238454,-6772.26311196,0.00022393,2]
[312861079,1706374238463,-166.666666,0.00022431,2]
[312861081,1706374238472,-220.134736,0.00022553,2]
[312861083,1706374238481,-166.666666,0.00022944,2]
[312861085,1706374238491,-9947.92180076,0.00023,2]
[312861087,1706374238500,-1416.67721386,0.00023,2]
[312861089,1706374238509,-166.666666,0.00023456,2]
[312861091,1706374238517,-2411.18267574,0.00023948,2]
[312861093,1706374238527,-166.666666,0.00023969,2]
[312861095,1706374238536,-4017.99473219,0.00024,2]
[312861097,1706374238545,-194.69458042,0.000244,2]
[312861099,1706374238553,-166.666666,0.00024482,2]
[312861101,1706374238562,-380.0,0.00024658,2]
[312861103,1706374238571,-498.88477678,0.0002496,5]
[312861105,1706374238581,-851.06760342,0.00025,2]
[312861107,1706374238590,-4727.98807036,0.00025,2]
[312861109,1706374238598,-7649.9786433,0.00025,2]
[312861111,1706374238607,-680.67452781,0.00025,2]
[312861113,1706374238617,-1828.18039739,0.00025,2]
[312861115,1706374238626,-155.01860223,0.00025,2]
[312861117,1706374238636,-260.27250039,0.00025,2]
[312861119,1706374238645,-194.9590979,0.00025479,2]
[312861121,1706374238653,-71547.11170681,0.00026499,2]
[312861123,1706374238662,-7305.3,0.000265,2]
[312861125,1706374238672,-2876.57311927,0.00026715,2]
[312861127,1706374238681,-194.69458042,0.00026899,2]
[312861129,1706374238691,-329.19745495,0.00026985,2]
[312861131,1706374238699,-290.6944281,0.00027,2]
[312861133,1706374238709,-874.25166184,0.0002728,2]
[312861135,1706374238718,-556.2457431,0.00028,2]
[312861137,1706374238732,-155.01860223,0.00028,2]
[312861139,1706374238741,-159.42971699,0.0002828,2]
[312861141,1706374238750,-574.77781384,0.0002849,2]
[312861143,1706374238760,-632.71258309,0.00028644,2]
[312861145,1706374238769,-158.26038439,0.00029,2]
[312861156,1706374238859,-1000.0,0.00029,2]
[312861158,1706374238869,-1933.42796518,0.00029,2]
[312861160,1706374238878,-153.0,0.00029315,2]
[312861162,1706374238887,-153.0,0.00029315,2]
[312861164,1706374238895,-212.0814075,0.00029315,2]
[312861166,1706374238904,-194.69458042,0.00029399,2]
[312861168,1706374238914,-9132.4701419,0.0002945,4]
[312861170,1706374238923,-312.5134984,0.00029589,2]
[312861172,1706374238932,-286.91730726,0.00029842,2]
[312861174,1706374238940,-5000.0,0.00029974,5]
[312861176,1706374238949,-17866.4828915,0.00029974,2]
[312861178,1706374238959,-5000.0,0.00029974,5]
[312861180,1706374238968,-5000.0,0.00029974,5]
[312861182,1706374238977,-26934.09699959,0.00029974,3]
[312861184,1706374238986,-5000.0,0.00029974,5]
[312861186,1706374238996,-690.87708229,0.00029974,2]
[312861188,1706374239005,-10053.76052391,0.00029981,2]
[312861190,1706374239014,-194.68732422,0.0002999,2]
[312861192,1706374239024,-259.07239837,0.0002999,2]
[312861194,1706374239033,-155.15395878,0.00029992,2]
[312861196,1706374239041,-283.65055231,0.00029992,2]
[312861198,1706374239050,-197.7452185,0.00029992,2]
[312861200,1706374239059,-563.51234938,0.00029992,2]
[312861202,1706374239068,-2710.54181066,0.00029992,2]
[312861204,1706374239077,-581.42890001,0.00029993,2]
[312861206,1706374239086,-793.45957236,0.00029994,2]
[312861208,1706374239095,-429.58433863,0.00029994,2]
[312861210,1706374239104,-16470.81066049,0.00029994,2]
[312861212,1706374239113,-155.61679895,0.00029994,2]
[312861214,1706374239122,-2512.042803,0.00029998,2]
[312861215,1706374239131,-500.0,0.00029999,2]
[312861217,1706374239140,-500.0,0.00029999,2]
[312861219,1706374239149,-500.0,0.00029999,2]
[312861221,1706374239159,-190.40084948,0.00029999,2]
[312861223,1706374239168,-500.0,0.00029999,2]
[312861225,1706374239177,-500.0,0.00029999,2]
[312861228,1706374239187,-500.0,0.00029999,2]
[312861230,1706374239197,-500.0,0.00029999,2]
[312861232,1706374239206,-500.0,0.00029999,2]
[312861234,1706374239215,-500.0,0.00029999,2]
[312861235,1706374239225,-500.0,0.00029999,2]
[312861237,1706374239234,-500.0,0.00029999,2]
[312861240,1706374239243,-500.0,0.00029999,2]
[312861242,1706374239253,-344.33734165,0.00029999,2]
[312861244,1706374239262,-500.0,0.00029999,2]
[312861245,1706374239271,-500.0,0.00029999,2]
[312861248,1706374239281,-500.0,0.00029999,2]
[312861249,1706374239290,-170.56154962,0.00029999,2]
[312861251,1706374239299,-500.0,0.00029999,2]
[312861253,1706374239308,-500.0,0.00029999,2]
[312861255,1706374239317,-500.0,0.00029999,2]
[312861257,1706374239327,-500.0,0.00029999,2]
[312861259,1706374239336,-500.0,0.00029999,2]
[312861261,1706374239345,-500.0,0.00029999,2]
[312861263,1706374239354,-500.0,0.00029999,2]
[312861265,1706374239363,-500.0,0.00029999,2]
[312861268,1706374239373,-500.0,0.00029999,2]
[312861269,1706374239382,-500.0,0.00029999,2]
[312861271,1706374239391,-500.0,0.00029999,2]
[312861273,1706374239400,-500.0,0.00029999,2]
[312861275,1706374239409,-500.0,0.00029999,2]
[312861277,1706374239418,-500.0,0.00029999,2]
[312861279,1706374239427,-397.4961264,0.00029999,2]
[312861281,1706374239437,-500.0,0.00029999,2]
[312861283,1706374239446,-500.0,0.00029999,2]
[312861285,1706374239455,-500.0,0.00029999,2]
[312861287,1706374239464,-500.0,0.00029999,2]
[312861290,1706374239473,-500.0,0.00029999,2]
[312861291,1706374239482,-500.0,0.00029999,2]
[312861293,1706374239491,-500.0,0.00029999,2]
[312861295,1706374239501,-500.0,0.00029999,2]
[312861297,1706374239511,-500.0,0.00029999,2]
[312861300,1706374239521,-616.27418145,0.00029999,2]
[312861302,1706374239530,-498.2,0.00029999,2]
[312861304,1706374239539,-500.0,0.00029999,2]
[312861306,1706374239548,-600.0,0.00029999,2]
[312861308,1706374239558,-500.0,0.00029999,2]
[312861310,1706374239567,-500.0,0.00029999,2]
[312861312,1706374239576,-500.0,0.00029999,2]
[312861314,1706374239585,-500.0,0.00029999,2]
[312861316,1706374239594,-500.0,0.00029999,2]
[312861318,1706374239604,-500.0,0.00029999,2]
[312861320,1706374239613,-500.0,0.00029999,2]
[312861322,1706374239622,-500.0,0.00029999,2]
[312861324,1706374239632,-500.0,0.00029999,2]
[312861326,1706374239642,-500.0,0.00029999,2]
[312861327,1706374239653,-500.0,0.00029999,2]
[312861328,1706374239662,-500.0,0.00029999,2]
[312861329,1706374239672,-500.0,0.00029999,2]
[312861330,1706374239682,-500.0,0.00029999,2]
[312861331,1706374239692,-500.0,0.00029999,2]
[312861332,1706374239701,-500.0,0.00029999,2]
[312861333,1706374239711,-500.0,0.00029999,2]
[312861334,1706374239723,-500.0,0.00029999,2]
[312861335,1706374239733,-500.0,0.00029999,2]
[312861336,1706374239742,-500.0,0.00029999,2]
[312861337,1706374239752,-500.0,0.00029999,2]
[312861339,1706374239763,-500.0,0.00029999,2]